[Event "Titled Tuesday Blitz July 4 Early 2023"]
[White "Ambartsumova, Karina"]
[Black "Philippe, Guillaume"]
[WhiteFideId "4166299"]
[BlackFideId "36048763"]
[WhiteElo "2561"]
[BlackElo "2432"]
[Result "1-0"]
[Round "8"]
[TimeControl "180+2"]
[Date "2023.07.04"]
[WhiteClock "0:00:15"]
[BlackClock "0:00:15"]
[Board "100"]

1. c4 {[%clk 0:03:00]}  Nf6 {[%clk 0:02:59]} 2. Nf3 {[%clk 0:02:59]}  e6 {[%clk 0:02:59]} 3. g3 {[%clk 0:02:58]}  d5 {[%clk 0:02:59]} 4. Bg2 {[%clk 0:02:59]}  dxc4 {[%clk 0:02:59]} 5. Qa4+ {[%clk 0:02:58]}  Bd7 {[%clk 0:02:55]} 6. Qxc4 {[%clk 0:02:58]}  Bc6 {[%clk 0:02:55]} 7. O-O {[%clk 0:02:55]}  Be7 {[%clk 0:02:56]} 8. Nc3 {[%clk 0:02:54]}  O-O {[%clk 0:02:55]} 9. e4 {[%clk 0:02:35]}  Nbd7 {[%clk 0:02:55]} 10. e5 {[%clk 0:02:28]}  Nd5 {[%clk 0:02:56]} 11. d4 {[%clk 0:02:24]}  N7b6 {[%clk 0:02:53]} 12. Qe2 {[%clk 0:02:23]}  a6 {[%clk 0:02:44]} 13. Rd1 {[%clk 0:02:17]}  Nxc3 {[%clk 0:02:35]} 14. bxc3 {[%clk 0:02:16]}  Bd5 {[%clk 0:02:35]} 15. h4 {[%clk 0:02:12]}  Rc8 {[%clk 0:02:28]} 16. Rb1 {[%clk 0:01:52]}  Nc4 {[%clk 0:02:25]} 17. Bf1 {[%clk 0:01:15]}  b5 {[%clk 0:02:24]} 18. Ng5 {[%clk 0:01:13]}  h6 {[%clk 0:02:07]} 19. Ne4 {[%clk 0:01:13]}  f5 {[%clk 0:01:47]} 20. exf6 {[%clk 0:01:11]}  Bxf6 {[%clk 0:01:47]} 21. Nc5 {[%clk 0:01:09]}  Re8 {[%clk 0:01:43]} 22. Qh5 {[%clk 0:01:05]}  e5 {[%clk 0:01:08]} 23. Bh3 {[%clk 0:01:04]}  Bf7 {[%clk 0:01:05]} 24. Qg4 {[%clk 0:00:54]}  Qe7 {[%clk 0:00:44]} 25. Bxh6 {[%clk 0:00:50]}  e4 {[%clk 0:00:43]} 26. Re1 {[%clk 0:00:39]}  Nd6 {[%clk 0:00:43]} 27. Bf4 {[%clk 0:00:31]}  Bxa2 {[%clk 0:00:41]} 28. Ra1 {[%clk 0:00:27]}  Bd5 {[%clk 0:00:41]} 29. Rxa6 {[%clk 0:00:26]}  Ra8 {[%clk 0:00:36]} 30. Rxa8 {[%clk 0:00:23]}  Rxa8 {[%clk 0:00:35]} 31. h5 {[%clk 0:00:23]}  Nf7 {[%clk 0:00:30]} 32. h6 {[%clk 0:00:21]}  e3 {[%clk 0:00:27]} 33. Bxe3 {[%clk 0:00:18]}  Nxh6 {[%clk 0:00:25]} 34. Qh5 {[%clk 0:00:15]}  Bf7 {[%clk 0:00:23]} 35. Qf3 {[%clk 0:00:14]}  Re8 {[%clk 0:00:15]} 36. Bd2 {[%clk 0:00:13]}  Qd8 {[%clk 0:00:11]} 37. Rxe8+ {[%clk 0:00:13]}  Bxe8 {[%clk 0:00:11]} 38. Ne6 {[%clk 0:00:12]}  Qe7 {[%clk 0:00:11]} 39. d5 {[%clk 0:00:12]}  Bf7 {[%clk 0:00:11]} 40. Bxh6 {[%clk 0:00:11]}  gxh6 {[%clk 0:00:11]} 41. Qg4+ {[%clk 0:00:11]}  Kh7 {[%clk 0:00:11]} 42. Qe4+ {[%clk 0:00:11]}  Bg6 {[%clk 0:00:11]} 43. Bf5 {[%clk 0:00:11]}  Bxf5 {[%clk 0:00:11]} 44. Qxf5+ {[%clk 0:00:12]}  Kg8 {[%clk 0:00:11]} 45. Qg4+ {[%clk 0:00:11]}  Kh7 {[%clk 0:00:12]} 46. Qf5+ {[%clk 0:00:12]}  Kg8 {[%clk 0:00:12]} 47. Qg6+ {[%clk 0:00:12]}  Kh8 {[%clk 0:00:13]} 48. Qxh6+ {[%clk 0:00:12]}  Kg8 {[%clk 0:00:13]} 49. Qg6+ {[%clk 0:00:12]}  Kh8 {[%clk 0:00:14]} 50. g4 {[%clk 0:00:11]}  Bxc3 {[%clk 0:00:14]} 51. Ng5 {[%clk 0:00:10]}  Qg7 {[%clk 0:00:08]} 52. Qh5+ {[%clk 0:00:09]}  Kg8 {[%clk 0:00:08]} 53. Qe8+ {[%clk 0:00:10]}  Qf8 {[%clk 0:00:08]} 54. Qe6+ {[%clk 0:00:10]}  Kh8 {[%clk 0:00:08]} 55. Kg2 {[%clk 0:00:07]}  b4 {[%clk 0:00:07]} 56. Qg6 {[%clk 0:00:07]}  Qg7 {[%clk 0:00:07]} 57. Qe8+ {[%clk 0:00:04]}  Qg8 {[%clk 0:00:07]} 58. Qh5+ {[%clk 0:00:04]}  Kg7 {[%clk 0:00:08]} 59. Ne6+ {[%clk 0:00:05]}  Kf6 {[%clk 0:00:08]} 60. Qf5+ {[%clk 0:00:05]}  Ke7 {[%clk 0:00:08]} 61. Nxc7 {[%clk 0:00:05]}  Kd6 {[%clk 0:00:05]} 62. Nb5+ {[%clk 0:00:05]}  Kc5 {[%clk 0:00:06]} 63. d6+ {[%clk 0:00:03]}  Kc4 {[%clk 0:00:06]} 64. d7 {[%clk 0:00:03]}  Qa8+ {[%clk 0:00:05]} 65. f3 {[%clk 0:00:03]}  b3 {[%clk 0:00:05]} 66. Nxc3 {[%clk 0:00:02]}  Kxc3 {[%clk 0:00:05]} 67. Qf6+ {[%clk 0:00:02]}  Kc2 {[%clk 0:00:05]} 68. d8=Q {[%clk 0:00:03]}  Qa2 {[%clk 0:00:03]} 69. Kg3 {[%clk 0:00:02]}  b2 {[%clk 0:00:02]} 70. Qc7+ {[%clk 0:00:02]}  Kb1 {[%clk 0:00:02]} 71. Qf5+ {[%clk 0:00:03]}  Ka1 {[%clk 0:00:02]} 72. Qc3 {[%clk 0:00:02]}  Qa4 {[%clk 0:00:02]} 73. Qfe5 {[%clk 0:00:03]}  Qa3 {[%clk 0:00:01]} 74. Qxb2+ {[%clk 0:00:03]}  Qxb2 {[%clk 0:00:02]} 75. Qxb2+ {[%clk 0:00:04]}  Kxb2 {[%clk 0:00:03]} 76. g5 {[%clk 0:00:05]}  Kc3 {[%clk 0:00:03]} 77. g6 {[%clk 0:00:06]}  Kc4 {[%clk 0:00:04]} 78. g7 {[%clk 0:00:07]}  Kd4 {[%clk 0:00:05]} 79. g8=Q {[%clk 0:00:07]}  Kd3 {[%clk 0:00:06]} 80. Qg4 {[%clk 0:00:08]}  Kd2 {[%clk 0:00:07]} 81. Qe4 {[%clk 0:00:09]}  Kc1 {[%clk 0:00:08]} 82. f4 {[%clk 0:00:09]}  Kb2 {[%clk 0:00:08]} 83. f5 {[%clk 0:00:10]}  Kc1 {[%clk 0:00:09]} 84. f6 {[%clk 0:00:11]}  Kb2 {[%clk 0:00:10]} 85. f7 {[%clk 0:00:11]}  Kc1 {[%clk 0:00:11]} 86. f8=Q {[%clk 0:00:12]}  Kb2 {[%clk 0:00:12]} 87. Qee7 {[%clk 0:00:12]}  Kc1 {[%clk 0:00:13]} 88. Qfd8 {[%clk 0:00:13]}  Kb2 {[%clk 0:00:14]} 89. Qec7 {[%clk 0:00:13]}  Ka1 {[%clk 0:00:15]} 90. Qdb8 {[%clk 0:00:14]}  Ka2 {[%clk 0:00:15]} 91. Qca7# {[%clk 0:00:15]} 1-0


[Site "https://www.chess.com"]

[Event "Titled Tuesday Blitz July 4 Early 2023"]
[White "FromTexas54"]
[Black "Aggelis, Nikolaos"]
[BlackFideId "4213220"]
[WhiteElo "2418"]
[BlackElo "2558"]
[Result "1-0"]
[Round "8"]
[TimeControl "180+2"]
[Date "2023.07.04"]
[WhiteClock "0:01:47"]
[BlackClock "0:01:30"]
[Board "101"]

1. Nf3 {[%clk 0:03:00]}  f5 {[%clk 0:02:59]} 2. d3 {[%clk 0:02:59]}  d6 {[%clk 0:02:56]} 3. e4 {[%clk 0:02:58]}  e5 {[%clk 0:02:56]} 4. Nc3 {[%clk 0:02:57]}  Nf6 {[%clk 0:02:52]} 5. Bg5 {[%clk 0:02:56]}  c6 {[%clk 0:02:51]} 6. d4 {[%clk 0:02:49]}  fxe4 {[%clk 0:02:41]} 7. Nxe4 {[%clk 0:02:48]}  Qa5+ {[%clk 0:02:34]} 8. Bd2 {[%clk 0:02:31]}  Qc7 {[%clk 0:02:31]} 9. Nxf6+ {[%clk 0:02:30]}  gxf6 {[%clk 0:02:28]} 10. dxe5 {[%clk 0:02:29]}  fxe5 {[%clk 0:02:28]} 11. Bd3 {[%clk 0:02:20]}  Be6 {[%clk 0:02:22]} 12. Ng5 {[%clk 0:02:18]}  Bf7 {[%clk 0:02:17]} 13. O-O {[%clk 0:02:18]}  Rg8 {[%clk 0:02:14]} 14. f4 {[%clk 0:02:13]}  Bg6 {[%clk 0:01:53]} 15. fxe5 {[%clk 0:02:04]}  Bxd3 {[%clk 0:01:52]} 16. cxd3 {[%clk 0:02:05]}  Nd7 {[%clk 0:01:48]} 17. Qh5+ {[%clk 0:02:00]}  Rg6 {[%clk 0:01:30]} 18. Nxh7 {[%clk 0:01:47]} 1-0


[Site "https://www.chess.com"]

[Event "Titled Tuesday Blitz July 4 Early 2023"]
[White "Kuznetsov, Mikhail"]
[Black "Parpiev, Isaak"]
[WhiteFideId "4117190"]
[BlackFideId "34281576"]
[WhiteElo "2417"]
[BlackElo "2556"]
[Result "0-1"]
[Round "8"]
[TimeControl "180+2"]
[Date "2023.07.04"]
[WhiteClock "0:00:00"]
[BlackClock "0:01:05"]
[Board "102"]

1. Nf3 {[%clk 0:03:00]}  Nf6 {[%clk 0:02:38]} 2. g3 {[%clk 0:02:59]}  c5 {[%clk 0:02:32]} 3. Bg2 {[%clk 0:02:57]}  Nc6 {[%clk 0:02:32]} 4. d4 {[%clk 0:02:55]}  cxd4 {[%clk 0:02:32]} 5. Nxd4 {[%clk 0:02:56]}  h5 {[%clk 0:02:32]} 6. h4 {[%clk 0:02:55]}  g6 {[%clk 0:02:28]} 7. c4 {[%clk 0:02:51]}  Bg7 {[%clk 0:02:28]} 8. Nc3 {[%clk 0:02:48]}  O-O {[%clk 0:02:28]} 9. O-O {[%clk 0:02:48]}  Nxd4 {[%clk 0:02:28]} 10. Qxd4 {[%clk 0:02:47]}  d6 {[%clk 0:02:29]} 11. Qd2 {[%clk 0:02:39]}  Rb8 {[%clk 0:02:27]} 12. b3 {[%clk 0:02:38]}  a6 {[%clk 0:02:12]} 13. Bb2 {[%clk 0:02:31]}  b5 {[%clk 0:02:11]} 14. Nd5 {[%clk 0:02:10]}  bxc4 {[%clk 0:01:56]} 15. Nxf6+ {[%clk 0:02:04]}  exf6 {[%clk 0:01:53]} 16. bxc4 {[%clk 0:02:03]}  Be6 {[%clk 0:01:52]} 17. Bd5 {[%clk 0:02:02]}  Bxd5 {[%clk 0:01:50]} 18. cxd5 {[%clk 0:02:00]}  Rxb2 {[%clk 0:01:50]} 19. Qxb2 {[%clk 0:01:59]}  f5 {[%clk 0:01:51]} 20. Qa3 {[%clk 0:01:57]}  Bxa1 {[%clk 0:01:52]} 21. Rxa1 {[%clk 0:01:56]}  f4 {[%clk 0:01:53]} 22. Qxa6 {[%clk 0:01:50]}  fxg3 {[%clk 0:01:53]} 23. fxg3 {[%clk 0:01:51]}  Qf6 {[%clk 0:01:53]} 24. Rf1 {[%clk 0:01:47]}  Qd4+ {[%clk 0:01:53]} 25. Kh2 {[%clk 0:01:39]}  Qxd5 {[%clk 0:01:54]} 26. Qd3 {[%clk 0:01:36]}  Qxa2 {[%clk 0:01:50]} 27. Rd1 {[%clk 0:01:26]}  Re8 {[%clk 0:01:39]} 28. Rd2 {[%clk 0:01:20]}  Qa7 {[%clk 0:01:39]} 29. Qxd6 {[%clk 0:00:52]}  Qf2+ {[%clk 0:01:38]} 30. Kh3 {[%clk 0:00:45]}  Re3 {[%clk 0:01:12]} 31. Qb8+ {[%clk 0:00:02]}  Kh7 {[%clk 0:01:10]} 32. Rd8 {[%clk 0:00:00]}  Qf1+ {[%clk 0:01:05]} 0-1


[Site "https://www.chess.com"]

[Event "Titled Tuesday Blitz July 4 Early 2023"]
[White "Brunner, Nicolas"]
[Black "Sowa, Ryan"]
[WhiteFideId "620246"]
[BlackFideId "30901693"]
[WhiteElo "2534"]
[BlackElo "2548"]
[Result "0-1"]
[Round "8"]
[TimeControl "180+2"]
[Date "2023.07.04"]
[WhiteClock "0:00:00"]
[BlackClock "0:00:50"]
[Board "103"]

1. Nf3 {[%clk 0:03:00]}  b6 {[%clk 0:03:00]} 2. g3 {[%clk 0:03:00]}  Bb7 {[%clk 0:03:01]} 3. Bg2 {[%clk 0:03:01]}  Nf6 {[%clk 0:03:02]} 4. O-O {[%clk 0:03:01]}  g6 {[%clk 0:03:03]} 5. c4 {[%clk 0:03:00]}  Bg7 {[%clk 0:03:03]} 6. d4 {[%clk 0:03:01]}  O-O {[%clk 0:03:03]} 7. d5 {[%clk 0:03:01]}  c6 {[%clk 0:03:03]} 8. Nc3 {[%clk 0:03:01]}  cxd5 {[%clk 0:03:03]} 9. cxd5 {[%clk 0:03:01]}  e6 {[%clk 0:03:03]} 10. e4 {[%clk 0:03:01]}  exd5 {[%clk 0:03:02]} 11. exd5 {[%clk 0:03:01]}  Na6 {[%clk 0:02:45]} 12. Nd4 {[%clk 0:02:58]}  d6 {[%clk 0:02:39]} 13. Nc6 {[%clk 0:02:56]}  Qd7 {[%clk 0:02:38]} 14. Be3 {[%clk 0:02:48]}  Nc7 {[%clk 0:02:36]} 15. Rc1 {[%clk 0:02:32]}  Rfc8 {[%clk 0:02:32]} 16. Qa4 {[%clk 0:01:53]}  Ng4 {[%clk 0:01:52]} 17. Bd4 {[%clk 0:01:50]}  Ne5 {[%clk 0:01:44]} 18. Bxe5 {[%clk 0:01:15]}  dxe5 {[%clk 0:01:42]} 19. Rfd1 {[%clk 0:01:13]}  Ne8 {[%clk 0:01:35]} 20. Ne4 {[%clk 0:00:54]}  Nd6 {[%clk 0:01:29]} 21. Nxd6 {[%clk 0:00:52]}  Qxd6 {[%clk 0:01:29]} 22. Qa3 {[%clk 0:00:41]}  Bf8 {[%clk 0:01:26]} 23. Qxd6 {[%clk 0:00:33]}  Bxd6 {[%clk 0:01:27]} 24. a3 {[%clk 0:00:33]}  Rc7 {[%clk 0:01:20]} 25. b4 {[%clk 0:00:28]}  a6 {[%clk 0:01:19]} 26. g4 {[%clk 0:00:24]}  f6 {[%clk 0:01:14]} 27. Be4 {[%clk 0:00:23]}  Kh8 {[%clk 0:01:10]} 28. Kg2 {[%clk 0:00:22]}  Rf8 {[%clk 0:01:10]} 29. Rc3 {[%clk 0:00:15]}  f5 {[%clk 0:01:10]} 30. gxf5 {[%clk 0:00:15]}  gxf5 {[%clk 0:01:11]} 31. Bb1 {[%clk 0:00:12]}  e4 {[%clk 0:01:11]} 32. Rdc1 {[%clk 0:00:11]}  Rg7+ {[%clk 0:01:10]} 33. Kh1 {[%clk 0:00:10]}  Rf6 {[%clk 0:00:57]} 34. Ba2 {[%clk 0:00:08]}  Rh6 {[%clk 0:00:55]} 35. h3 {[%clk 0:00:08]}  Rhg6 {[%clk 0:00:52]} 36. Nd4 {[%clk 0:00:00]}  Rg2 {[%clk 0:00:50]} 0-1


[Site "https://www.chess.com"]

[Event "Titled Tuesday Blitz July 4 Early 2023"]
[White "Todorovic, Bojan"]
[Black "Howell, David W L"]
[WhiteFideId "917087"]
[BlackFideId "410608"]
[WhiteElo "2363"]
[BlackElo "2995"]
[Result "0-1"]
[Round "8"]
[TimeControl "180+2"]
[Date "2023.07.04"]
[WhiteClock "0:00:13"]
[BlackClock "0:00:11"]
[Board "107"]

1. d4 {[%clk 0:02:57]}  Nf6 {[%clk 0:02:58]} 2. c4 {[%clk 0:02:55]}  c5 {[%clk 0:02:58]} 3. d5 {[%clk 0:02:55]}  e6 {[%clk 0:02:55]} 4. Nc3 {[%clk 0:02:54]}  exd5 {[%clk 0:02:55]} 5. cxd5 {[%clk 0:02:53]}  d6 {[%clk 0:02:55]} 6. Nf3 {[%clk 0:02:53]}  g6 {[%clk 0:02:56]} 7. Nd2 {[%clk 0:02:53]}  Bg7 {[%clk 0:02:56]} 8. Nc4 {[%clk 0:02:53]}  O-O {[%clk 0:02:56]} 9. Bf4 {[%clk 0:02:52]}  Ne8 {[%clk 0:01:58]} 10. Qd2 {[%clk 0:02:51]}  Nd7 {[%clk 0:01:49]} 11. Nxd6 {[%clk 0:02:34]}  Ne5 {[%clk 0:01:48]} 12. Bxe5 {[%clk 0:02:22]}  Bxe5 {[%clk 0:01:46]} 13. Nc4 {[%clk 0:02:15]}  Bxc3 {[%clk 0:01:25]} 14. bxc3 {[%clk 0:02:14]}  b5 {[%clk 0:01:24]} 15. Ne5 {[%clk 0:02:06]}  Nd6 {[%clk 0:01:05]} 16. Nc6 {[%clk 0:01:46]}  Qf6 {[%clk 0:01:03]} 17. e3 {[%clk 0:01:35]}  Bb7 {[%clk 0:00:56]} 18. Bd3 {[%clk 0:01:27]}  Bxc6 {[%clk 0:00:42]} 19. dxc6 {[%clk 0:01:27]}  Rac8 {[%clk 0:00:39]} 20. O-O {[%clk 0:01:22]}  Rfd8 {[%clk 0:00:33]} 21. Qe2 {[%clk 0:01:17]}  c4 {[%clk 0:00:29]} 22. Bc2 {[%clk 0:01:12]}  Qxc3 {[%clk 0:00:25]} 23. Rad1 {[%clk 0:01:11]}  Rxc6 {[%clk 0:00:25]} 24. Rd4 {[%clk 0:01:11]}  Rcc8 {[%clk 0:00:19]} 25. Rfd1 {[%clk 0:01:10]}  Nb7 {[%clk 0:00:20]} 26. Be4 {[%clk 0:01:04]}  Rxd4 {[%clk 0:00:19]} 27. exd4 {[%clk 0:00:57]}  Re8 {[%clk 0:00:16]} 28. Qg4 {[%clk 0:00:47]}  Nd6 {[%clk 0:00:15]} 29. f3 {[%clk 0:00:32]}  Qe3+ {[%clk 0:00:13]} 30. Kh1 {[%clk 0:00:31]}  f5 {[%clk 0:00:13]} 31. Bd5+ {[%clk 0:00:31]}  Kg7 {[%clk 0:00:13]} 32. Qh4 {[%clk 0:00:31]}  c3 {[%clk 0:00:11]} 33. Bb3 {[%clk 0:00:29]}  a5 {[%clk 0:00:10]} 34. h3 {[%clk 0:00:27]}  a4 {[%clk 0:00:10]} 35. Bc2 {[%clk 0:00:13]}  Qe2 {[%clk 0:00:11]} 0-1


[Site "https://www.chess.com"]

[Event "Titled Tuesday Blitz July 4 Early 2023"]
[White "Goncalves, Davi Sulzbacher"]
[Black "Girya, Olga"]
[WhiteFideId "2154510"]
[BlackFideId "4195752"]
[WhiteElo "2442"]
[BlackElo "2600"]
[Result "1-0"]
[Round "8"]
[TimeControl "180+2"]
[Date "2023.07.04"]
[WhiteClock "0:01:27"]
[BlackClock "0:00:00"]
[Board "108"]

1. e4 {[%clk 0:03:00]}  e5 {[%clk 0:02:59]} 2. Nf3 {[%clk 0:03:00]}  Nc6 {[%clk 0:03:00]} 3. Bb5 {[%clk 0:03:00]}  a6 {[%clk 0:03:00]} 4. Ba4 {[%clk 0:03:00]}  Nf6 {[%clk 0:03:00]} 5. O-O {[%clk 0:03:00]}  Nxe4 {[%clk 0:03:00]} 6. d4 {[%clk 0:03:00]}  b5 {[%clk 0:02:59]} 7. Bb3 {[%clk 0:03:00]}  d5 {[%clk 0:03:00]} 8. dxe5 {[%clk 0:03:00]}  Be6 {[%clk 0:03:00]} 9. c3 {[%clk 0:03:00]}  Be7 {[%clk 0:03:00]} 10. Nbd2 {[%clk 0:03:00]}  Nc5 {[%clk 0:02:59]} 11. Bc2 {[%clk 0:03:00]}  d4 {[%clk 0:03:00]} 12. Nb3 {[%clk 0:02:42]}  d3 {[%clk 0:03:00]} 13. Bb1 {[%clk 0:02:42]}  Nxb3 {[%clk 0:02:59]} 14. axb3 {[%clk 0:02:42]}  Bf5 {[%clk 0:03:00]} 15. Be3 {[%clk 0:02:40]}  O-O {[%clk 0:02:59]} 16. Nd4 {[%clk 0:02:39]}  Nxd4 {[%clk 0:02:36]} 17. cxd4 {[%clk 0:02:38]}  Qd5 {[%clk 0:02:24]} 18. Bxd3 {[%clk 0:02:34]}  Bxd3 {[%clk 0:02:23]} 19. Qxd3 {[%clk 0:02:35]}  c5 {[%clk 0:02:24]} 20. Rfd1 {[%clk 0:02:25]}  cxd4 {[%clk 0:01:59]} 21. Bxd4 {[%clk 0:02:24]}  Rfd8 {[%clk 0:01:58]} 22. Qg3 {[%clk 0:02:23]}  Bc5 {[%clk 0:01:35]} 23. Rd2 {[%clk 0:01:56]}  Bxd4 {[%clk 0:01:29]} 24. Rad1 {[%clk 0:01:56]}  Qe6 {[%clk 0:00:50]} 25. Rxd4 {[%clk 0:01:51]}  Rxd4 {[%clk 0:00:42]} 26. Rxd4 {[%clk 0:01:52]}  Rc8 {[%clk 0:00:40]} 27. h4 {[%clk 0:01:35]}  h5 {[%clk 0:00:24]} 28. Qg5 {[%clk 0:01:33]}  g6 {[%clk 0:00:21]} 29. Rd6 {[%clk 0:01:30]}  Qxb3 {[%clk 0:00:00]} 30. e6 {[%clk 0:01:27]} 1-0


[Site "https://www.chess.com"]

[Event "Titled Tuesday Blitz July 4 Early 2023"]
[White "Ganiev, Roman"]
[Black "Bueno, Alfeu Junior Varela"]
[WhiteFideId "4131452"]
[BlackFideId "2108879"]
[WhiteElo "2599"]
[BlackElo "2432"]
[Result "0-1"]
[Round "8"]
[TimeControl "180+2"]
[Date "2023.07.04"]
[WhiteClock "0:00:01"]
[BlackClock "0:00:17"]
[Board "109"]

1. e4 {[%clk 0:03:00]}  e6 {[%clk 0:02:58]} 2. d4 {[%clk 0:03:01]}  d5 {[%clk 0:02:58]} 3. Nc3 {[%clk 0:03:01]}  Nf6 {[%clk 0:02:57]} 4. Bg5 {[%clk 0:03:01]}  Be7 {[%clk 0:02:58]} 5. e5 {[%clk 0:03:01]}  Nfd7 {[%clk 0:02:57]} 6. Bxe7 {[%clk 0:03:01]}  Qxe7 {[%clk 0:02:58]} 7. f4 {[%clk 0:03:02]}  O-O {[%clk 0:02:59]} 8. Nf3 {[%clk 0:03:01]}  c5 {[%clk 0:02:59]} 9. dxc5 {[%clk 0:02:57]}  f6 {[%clk 0:02:59]} 10. exf6 {[%clk 0:02:55]}  Qxf6 {[%clk 0:03:00]} 11. g3 {[%clk 0:02:51]}  Nc6 {[%clk 0:03:00]} 12. Qd2 {[%clk 0:02:48]}  Nxc5 {[%clk 0:02:59]} 13. O-O-O {[%clk 0:02:46]}  Rd8 {[%clk 0:02:58]} 14. Re1 {[%clk 0:02:45]}  Ne4 {[%clk 0:02:52]} 15. Qe3 {[%clk 0:02:41]}  Nxc3 {[%clk 0:02:48]} 16. Qxc3 {[%clk 0:02:42]}  Qxc3 {[%clk 0:02:47]} 17. bxc3 {[%clk 0:02:43]}  a6 {[%clk 0:02:38]} 18. Bh3 {[%clk 0:02:39]}  Rd6 {[%clk 0:02:19]} 19. Re2 {[%clk 0:02:24]}  h6 {[%clk 0:02:12]} 20. Rhe1 {[%clk 0:02:22]}  Nd8 {[%clk 0:02:10]} 21. Nd4 {[%clk 0:01:51]}  Kf7 {[%clk 0:01:59]} 22. g4 {[%clk 0:01:21]}  Bd7 {[%clk 0:01:28]} 23. f5 {[%clk 0:01:15]}  exf5 {[%clk 0:01:27]} 24. Re7+ {[%clk 0:01:12]}  Kf8 {[%clk 0:01:26]} 25. gxf5 {[%clk 0:01:05]}  Nc6 {[%clk 0:01:13]} 26. Rxd7 {[%clk 0:00:21]}  Rxd7 {[%clk 0:01:11]} 27. f6 {[%clk 0:00:21]}  Rf7 {[%clk 0:00:47]} 28. Ne6+ {[%clk 0:00:18]}  Kg8 {[%clk 0:00:47]} 29. fxg7 {[%clk 0:00:18]}  Re8 {[%clk 0:00:43]} 30. Rd1 {[%clk 0:00:09]}  Rfe7 {[%clk 0:00:34]} 31. Nc5 {[%clk 0:00:05]}  Re1 {[%clk 0:00:30]} 32. Rxe1 {[%clk 0:00:03]}  Rxe1+ {[%clk 0:00:30]} 33. Kd2 {[%clk 0:00:04]}  Rh1 {[%clk 0:00:26]} 34. Be6+ {[%clk 0:00:05]}  Kxg7 {[%clk 0:00:26]} 35. Bxd5 {[%clk 0:00:06]}  Rxh2+ {[%clk 0:00:26]} 36. Kc1 {[%clk 0:00:07]}  Nd8 {[%clk 0:00:20]} 37. Nxb7 {[%clk 0:00:05]}  Nxb7 {[%clk 0:00:20]} 38. Bxb7 {[%clk 0:00:06]}  a5 {[%clk 0:00:20]} 39. Kb2 {[%clk 0:00:06]}  Rh4 {[%clk 0:00:18]} 40. Kb3 {[%clk 0:00:05]}  Kf6 {[%clk 0:00:17]} 41. a4 {[%clk 0:00:02]}  Ke5 {[%clk 0:00:17]} 42. Bc6 {[%clk 0:00:02]}  Kd6 {[%clk 0:00:17]} 43. Bb7 {[%clk 0:00:03]}  Kc5 {[%clk 0:00:17]} 44. Be4 {[%clk 0:00:01]}  Rxe4 {[%clk 0:00:17]} 0-1


[Site "https://www.chess.com"]

[Event "Titled Tuesday Blitz July 4 Early 2023"]
[White "Hoffmann, Asa"]
[Black "Becerra, Juan David"]
[WhiteFideId "2001470"]
[BlackFideId "4404998"]
[WhiteElo "2425"]
[BlackElo "2563"]
[Result "1-0"]
[Round "8"]
[TimeControl "180+2"]
[Date "2023.07.04"]
[WhiteClock "0:02:25"]
[BlackClock "0:00:38"]
[Board "115"]

1. d4 {[%clk 0:02:56]}  d5 {[%clk 0:03:00]} 2. Bg5 {[%clk 0:02:55]}  h6 {[%clk 0:02:54]} 3. Bh4 {[%clk 0:02:54]}  c5 {[%clk 0:02:51]} 4. dxc5 {[%clk 0:02:53]}  Qa5+ {[%clk 0:02:44]} 5. Nc3 {[%clk 0:02:52]}  e6 {[%clk 0:02:44]} 6. e4 {[%clk 0:02:50]}  dxe4 {[%clk 0:02:33]} 7. b4 {[%clk 0:02:45]}  Qc7 {[%clk 0:02:26]} 8. Nb5 {[%clk 0:02:44]}  Qd7 {[%clk 0:02:19]} 9. Qxd7+ {[%clk 0:02:43]}  Kxd7 {[%clk 0:02:20]} 10. O-O-O+ {[%clk 0:02:42]}  Kc6 {[%clk 0:02:16]} 11. Nd4+ {[%clk 0:02:40]}  Kc7 {[%clk 0:02:07]} 12. Bg3+ {[%clk 0:02:30]}  Kd8 {[%clk 0:00:38]} 13. Nc6+ {[%clk 0:02:25]} 1-0


[Site "https://www.chess.com"]

[Event "Titled Tuesday Blitz July 4 Early 2023"]
[White "Duarte, Leonardo"]
[Black "Przybylski, Wojciech"]
[WhiteFideId "110582"]
[BlackFideId "1117599"]
[WhiteElo "2418"]
[BlackElo "2552"]
[Result "0-1"]
[Round "8"]
[TimeControl "180+2"]
[Date "2023.07.04"]
[WhiteClock "0:00:15"]
[BlackClock "0:01:42"]
[Board "116"]

1. e4 {[%clk 0:03:00]}  e5 {[%clk 0:02:59]} 2. Nf3 {[%clk 0:03:01]}  Nf6 {[%clk 0:02:59]} 3. Nxe5 {[%clk 0:02:59]}  d6 {[%clk 0:03:00]} 4. Nf3 {[%clk 0:02:59]}  Nxe4 {[%clk 0:03:00]} 5. d4 {[%clk 0:02:58]}  d5 {[%clk 0:03:01]} 6. Bd3 {[%clk 0:02:52]}  Bf5 {[%clk 0:03:01]} 7. O-O {[%clk 0:02:52]}  Be7 {[%clk 0:03:01]} 8. c4 {[%clk 0:02:51]}  O-O {[%clk 0:02:59]} 9. Re1 {[%clk 0:02:47]}  c6 {[%clk 0:02:58]} 10. Qb3 {[%clk 0:02:14]}  Na6 {[%clk 0:02:58]} 11. a3 {[%clk 0:01:17]}  Nec5 {[%clk 0:02:57]} 12. dxc5 {[%clk 0:01:14]}  Nxc5 {[%clk 0:02:57]} 13. Qd1 {[%clk 0:01:14]}  Nxd3 {[%clk 0:02:49]} 14. Rf1 {[%clk 0:01:09]}  dxc4 {[%clk 0:02:24]} 15. Nbd2 {[%clk 0:00:54]}  b5 {[%clk 0:02:20]} 16. a4 {[%clk 0:00:50]}  a6 {[%clk 0:02:19]} 17. axb5 {[%clk 0:00:48]}  cxb5 {[%clk 0:02:16]} 18. b3 {[%clk 0:00:47]}  Bf6 {[%clk 0:02:16]} 19. Ra3 {[%clk 0:00:37]}  b4 {[%clk 0:02:13]} 20. Ra4 {[%clk 0:00:35]}  c3 {[%clk 0:02:12]} 21. Nc4 {[%clk 0:00:33]}  a5 {[%clk 0:01:55]} 22. Be3 {[%clk 0:00:30]}  Nb2 {[%clk 0:01:48]} 23. Nxb2 {[%clk 0:00:29]}  cxb2 {[%clk 0:01:47]} 24. Qxd8 {[%clk 0:00:21]}  Rfxd8 {[%clk 0:01:46]} 25. Nd2 {[%clk 0:00:15]}  Rxd2 {[%clk 0:01:42]} 0-1


[Site "https://www.chess.com"]